[Event "European Corporate Championship 2022"]
[Site "Rotterdam"]
[Date "2022.06.18"]
[Round "4.6"]
[White "Celinski, Kamil"]
[Black "Schouten, Jordy"]
[Result "0-1"]
[ECO "D90"]
[WhiteElo "1907"]
[BlackElo "2121"]
[Annotator "TA"]
[PlyCount "122"]
[EventDate "2022.06.18"]
[EventType "team-tourn"]
[EventCountry "NED"]
[SourceTitle "playchess.com"]
[Source "ChessBase"]
[SourceQuality "1"]
[TimeControl "900+5"]

{[%evp 14,121,-11,-14,-16,-26,-33,-37,69,79,70,7,91,88,87,72,70,67,73,9,0,-38,-13,-12,0,0,0,0,0,0,0,0,0,-9,0,0,24,-17,18,0,0,0,0,0,0,0,0,0,0,0,0,0,0,0,0,0,0,0,0,0,0,0,0,0,42,0,0,0,0,-8,-8,-8,0,-29,0,0,0,-2,0,-4,0,0,-5,-68,0,-25,0,-26,-26,-66,-66,-66,0,-102,-1,-12791,-5628,-29980,-29981,-29981,-29980,-29980,-29981,-29983,-29984,-29995,-29996,-29997,-29998,-29999]} 1. Nf3 {[%emt 0:00:15]} Nf6 {[%emt 0:00:07]} 2. c4 {[%emt 0:00:02]} g6 {[%emt 0:00:02]} 3. Nc3 {[%emt 0:00:02]} Bg7 {[%emt 0:00:01]} 4. d4 {[%emt 0:00:02]} d5 {[%emt 0:00:03]} 5. Qa4+ {[%emt 0:01:40]} Bd7 {[%emt 0:00:41]} 6. Qb3 {[%emt 0:00:01]} dxc4 {[%emt 0:00:10]} 7. Qxc4 {[%emt 0:00:04]} O-O {[%emt 0:00:20]} 8. e4 {[%emt 0:00:05]} b5 {[%emt 0:00:36] D90: Grünfeld: 4 Nf3 Bg7 sidelines.} 9. Qb3 {[%emt 0:00:37]} (9. Nxb5 {keeps more tension.} Nxe4 10. Qxc7 Nc6 11. Bd3) 9... c5 $1 {[%emt 0:01:57]} 10. dxc5 {[%emt 0:00:37] [#]} b4 $146 {[%emt 0:00:04]} (10... Na6 $15) ({Predecessor:} 10... Na6 11. e5 Ng4 12. h3 Nxe5 13. Nxe5 Bxe5 14. Bh6 Re8 15. Qd5 Qc7 16. Rc1 Rad8 {1-0 (50) Gunina,V (2446)-Abdumalik,Z (2502) Struga 2021}) 11. Qxb4 $14 {[%emt 0:00:31]} Nc6 {[%emt 0:00:01]} 12. Qb3 {[%emt 0:00:20]} ({Better is} 12. Qa4 $14) 12... Be6 {[%emt 0:00:39]} (12... Rb8 $11 13. Qd1 Qa5) 13. Qa4 $16 {[%emt 0:00:51]} Qc7 {[%emt 0:01:14]} 14. Bb5 {[%emt 0:00:19]} Ne5 {[%emt 0:00:34]} 15. Nd4 {[%emt 0:01:15]} Bd7 {[%emt 0:01:17]} (15... Qxc5 16. Nxe6 fxe6 17. Be3 $16) 16. Bxd7 {[%emt 0:01:14]} ({Much weaker is} 16. c6 a6 17. Be2 (17. cxd7 axb5 18. Ndxb5 Qxd7 $11) (17. Bxa6 $2 Bc8 $19) 17... Nxc6 18. Nxc6 Bxc6 $11) (16. O-O $16) 16... Nfxd7 $11 {[%emt 0:01:21][%cal Bf6d7,Bd7b6,Bb6c4][%mdl 32]} 17. Nd5 {[%emt 0:00:52][%cal Bc3d5,Bd5b4,Bb4c6][%mdl 32]} ({Avoid the trap} 17. c6 $2 Nc5 18. Ndb5 Qxc6 $19) 17... Qxc5 {[%emt 0:00:49]} 18. O-O {[%emt 0:00:44]} Nb6 {[%emt 0:00:14]} 19. Qb4 {[%emt 0:00:24]} Qxb4 {[%emt 0:00:43]} 20. Nxb4 {[%emt 0:00:02]} Rfd8 {[%emt 0:00:24]} 21. Ndc6 {[%emt 0:00:38]} Nxc6 {[%emt 0:00:07]} 22. Nxc6 {[%emt 0:00:01]} Rd7 {[%emt 0:00:01]} 23. Be3 {[%emt 0:06:24]} Nc4 {[%emt 0:00:01]} 24. Bg5 {[%emt 0:00:00]} f6 {[%emt 0:01:10]} 25. Bf4 {[%emt 0:00:00]} e5 {[%emt 0:00:04]} (25... Rc8 $5 {[%cal Rc8c6]} 26. Rad1 Rb7 27. Rd8+ Rxd8 28. Nxd8 Rxb2 $11) 26. Bc1 {[%emt 0:00:00]} Bf8 {[%emt 0:00:47]} 27. b3 $1 {[%emt 0:00:00]} Rc8 {[%emt 0:01:16]} 28. Nxa7 {[%emt 0:00:00]} Rxa7 {[%emt 0:00:01]} 29. bxc4 {[%emt 0:00:00]} Rxc4 {[%emt 0:00:02]} 30. Be3 {[%emt 0:00:00]} Ra3 {[%emt 0:00:11]} 31. Rfc1 {[%emt 0:00:00]} Rxc1+ {[%emt 0:01:17]} 32. Bxc1 {[%emt 0:00:01][%mdl 4096] Endgame KRB-KRB} Ra4 {[%emt 0:00:01]} 33. Be3 {[%emt 0:00:22]} Ba3 {[%emt 0:00:38]} 34. h3 {[%emt 0:00:16]} Rxe4 {[%emt 0:00:06]} 35. Rb1 {[%emt 0:00:03]} Ra4 {[%emt 0:00:03]} 36. Rb8+ {[%emt 0:00:07]} Kf7 {[%emt 0:00:03]} 37. Rb7+ {[%emt 0:00:05]} Ke6 {[%emt 0:00:01]} 38. Rxh7 {[%emt 0:00:03]} Bd6 {[%emt 0:00:02]} 39. g3 {[%emt 0:00:03]} (39. Ra7 $5 {[%cal Ra7a4]} Rb4 40. g3 $14) 39... Rxa2 {[%emt 0:00:02]} 40. Rg7 {[%emt 0:00:05]} g5 {[%emt 0:00:09]} 41. h4 {[%emt 0:00:03]} gxh4 {[%emt 0:00:03]} 42. gxh4 {[%emt 0:00:01]} f5 {[%emt 0:00:01]} 43. Bb6 {[%emt 0:00:08]} Kf6 {[%emt 0:00:37]} 44. Rd7 {[%emt 0:00:01]} Bb4 {[%emt 0:00:01]} 45. Rb7 {[%emt 0:00:09] [#] Threatens to win with Bd8+.} Bd2 {[%emt 0:00:06]} 46. Kg2 {[%emt 0:00:16]} e4 {[%emt 0:00:06]} 47. Bd4+ {[%emt 0:00:08]} Kg6 {[%emt 0:00:47]} 48. Rg7+ {[%emt 0:00:06]} ({White should try} 48. Rb5 $11) 48... Kh6 {[%emt 0:00:00]} (48... Kh5 $15) 49. Kf1 {[%emt 0:00:04]} f4 {[%emt 0:00:00]} 50. Rd7 {[%emt 0:00:04]} f3 {[%emt 0:00:00] aiming for ...Kh5.} 51. Be3+ {[%emt 0:00:05]} Bxe3 {[%emt 0:00:00]} 52. fxe3 $15 {[%emt 0:00:02] KR-KR} Re2 {[%emt 0:00:00]} (52... Rh2 $15 53. Rd8 Rxh4 54. Rh8+ Kg5) 53. Rd5 {[%emt 0:00:02] [#]} (53. Re7 $11) 53... Rxe3 {[%emt 0:00:00]} ({Black should play} 53... Rh2 $1 $17 54. Rf5 Rxh4) 54. Kf2 $2 {[%emt 0:00:01][%mdl 8192] Loses the game.} (54. h5 $11) 54... Re2+ $19 {[%emt 0:00:00]} 55. Kg3 {[%emt 0:00:06]} Rg2+ {[%emt 0:00:00] Black mates.} 56. Kh3 {[%emt 0:00:00]} Rg1 {[%emt 0:00:00]} 57. Rf5 {[%emt 0:00:09]} e3 {[%emt 0:00:00]} 58. Rxf3 {[%emt 0:00:04]} e2 {[%emt 0:00:00]} 59. h5 {[%emt 0:00:07]} e1=Q {[%emt 0:00:02]} 60. Rf2 {[%emt 0:00:06]} Qe3+ {[%emt 0:00:07]} 61. Kh4 {[%emt 0:00:03]} Qg3# {[%emt 0:00:01] Weighted Error Value: White=0.39/Black=0.19 (very precise)} 0-1

[Event "European Corporate Championship 2022"]
[Site "Rotterdam"]
[Date "2022.06.18"]
[Round "4.7"]
[White "IJzermans, Cees"]
[Black "Wisniewski, Jacek"]
[Result "1-0"]
[ECO "B81"]
[WhiteElo "2115"]
[BlackElo "1850"]
[Annotator "TA"]
[PlyCount "53"]
[EventDate "2022.06.18"]
[EventType "team-tourn"]
[EventCountry "NED"]
[SourceTitle "playchess.com"]
[Source "ChessBase"]
[SourceQuality "1"]
[TimeControl "900+5"]

{[%evp 15,53,19,38,26,20,-72,-70,-75,24,19,314,289,814,811,824,414,395,406,390,365,1036,1030,1018,1015,979,976,1120,909,920,922,916,912,1004,981,1218,1216,5043,5035,2195,1824]} 1. e4 {[%emt 0:00:04]} c5 {[%emt 0:00:04]} 2. Nf3 {[%emt 0:00:02]} d6 {[%emt 0:00:02]} 3. d4 {[%emt 0:00:01]} cxd4 {[%emt 0:00:03]} 4. Nxd4 {[%emt 0:00:03]} Nf6 {[%emt 0:00:03]} 5. Nc3 {[%emt 0:00:01]} a6 {[%emt 0:00:01]} 6. h3 {[%emt 0:00:13]} b5 {[%emt 0:00:18]} 7. g4 {[%emt 0:00:05]} Bb7 {[%emt 0:01:02]} 8. Bg2 {[%emt 0:00:03]} e6 {[%emt 0:00:37] 8...Nc6 gains popularity.} 9. O-O {[%emt 0:00:05] B81: Sicilian Scheveningen: Keres Attack.} b4 {[%emt 0:00:51] [#]} 10. g5 {[%emt 0:01:09]} (10. Nd5 $1 $11) 10... bxc3 $17 {[%emt 0:00:35]} 11. gxf6 {[%emt 0:00:03] [#] Black is slightly better.} Qxf6 $146 {[%emt 0:00:19]} (11... cxb2 $17 12. Bxb2 gxf6) ({Predecessor:} 11... gxf6 12. bxc3 Rg8 13. Re1 Qc8 14. Qd3 Nd7 15. Kf1 f5 16. Bf3 Nc5 17. Qd1 fxe4 {0-1 (24) Belter,E (1720)-Stepaniec,L (2177) ICCF email 2020}) 12. bxc3 {[%emt 0:00:11] Strongly threatening Rb1.} Be7 $2 {[%emt 0:00:15][%mdl 8192] Black cannot hold the game after this.} (12... Nd7 $11 {and Black is okay.}) 13. Rb1 $18 {[%emt 0:00:12]} Bc6 {[%emt 0:02:30]} (13... Ra7 14. Be3 Nd7 15. Nxe6 Qxe6) 14. e5 {[%emt 0:00:13]} Qg6 {[%emt 0:00:05]} 15. Nxc6 {[%emt 0:00:02] Active counter play!} Nxc6 {[%emt 0:00:14]} 16. exd6 {[%emt 0:00:03]} Rd8 {[%emt 0:00:14]} 17. Qd3 {[%emt 0:00:03]} Qxd3 {[%emt 0:03:35]} (17... Rxd6 18. Qxg6 hxg6 19. Bxc6+ Rxc6) 18. Bxc6+ {[%emt 0:00:07] This bishop pair is nice. White is clearly winning.} Kf8 {[%emt 0:00:16]} 19. dxe7+ {[%emt 0:00:03]} Kxe7 {[%emt 0:00:08]} 20. cxd3 {[%emt 0:00:02]} Rxd3 {[%emt 0:00:11]} 21. Ba3+ {[%emt 0:00:04]} Kf6 {[%emt 0:00:06]} 22. Bc5 {[%emt 0:00:12]} Rc8 {[%emt 0:00:11]} 23. Be4 {[%emt 0:00:15][%csl LRd3,LRh7]} Rxh3 {[%emt 0:00:19]} 24. Bd4+ {[%emt 0:00:02]} Kg5 {[%emt 0:00:10]} 25. f4+ {[%emt 0:00:10]} Kh6 {[%emt 0:00:24]} 26. Kg2 {[%emt 0:00:04] [#] Threatening mate with Rh1.} Rh5 {[%emt 0:00:18]} 27. Rh1 {[%emt 0:00:03] Weighted Error Value: White=0.94/Black=0.97} 1-0

[Event "European Corporate Championship 2022"]
[Site "Rotterdam"]
[Date "2022.06.18"]
[Round "4.8"]
[White "Basiaga, Sebastian"]
[Black "Van den Broek, Rene"]
[Result "1-0"]
[ECO "A40"]
[WhiteElo "1749"]
[BlackElo "1980"]
[Annotator "TA"]
[PlyCount "57"]
[EventDate "2022.06.18"]
[EventType "team-tourn"]
[EventCountry "NED"]
[SourceTitle "playchess.com"]
[Source "ChessBase"]
[SourceQuality "1"]
[TimeControl "900+5"]

{[%evp 12,57,18,16,24,16,36,45,34,35,38,20,27,5,442,430,449,449,452,446,462,418,460,460,460,460,458,454,548,452,652,567,568,560,607,597,655,654,808,718,821,820,867,802,856,856,942,902]} 1. e4 {[%emt 0:00:02]} Nc6 {[%emt 0:00:01]} 2. d4 {[%emt 0:00:02][%cal Bd2d4,Bd4d5][%mdl 32]} e5 {[%emt 0:00:00]} 3. d5 {[%emt 0:00:03]} Nce7 {[%emt 0:00:01]} 4. c4 {[%emt 0:00:06]} Ng6 {[%emt 0:00:01]} 5. Bd3 {[%emt 0:00:05]} Nf6 {[%emt 0:00:05]} 6. Ne2 {[%emt 0:00:31]} Bc5 {[%emt 0:00:12]} 7. O-O {[%emt 0:00:23]} d6 {[%emt 0:00:12] A40: Unusual replies to 1 d4.} 8. Nbc3 {[%emt 0:01:31][%cal Ob2b4] [#]} Bd7 $146 {[%emt 0:01:16]} ({Predecessor:} 8... O-O 9. Na4 Bb6 10. Nxb6 axb6 11. f3 Nh5 12. Be3 Nhf4 13. Qd2 Nxe2+ 14. Bxe2 f5 15. exf5 Bxf5 {½-½ (60) Bobula,M (2352)-O'Brien,M (2303) Chess.com INT 2017}) 9. Na4 {[%emt 0:01:05]} Bxa4 {[%emt 0:00:55] White is slightly better.} 10. Qxa4+ {[%emt 0:00:02]} Qd7 {[%emt 0:00:02]} 11. Qc2 {[%emt 0:01:05]} O-O {[%emt 0:00:19]} 12. Ng3 {[%emt 0:01:22]} Nh5 $2 {[%emt 0:00:41][%mdl 8192] [#]} 13. Nxh5 $18 {[%emt 0:00:20]} Qg4 {[%emt 0:00:25]} 14. Be2 {[%emt 0:01:22]} Qh4 {[%emt 0:00:02]} 15. Ng3 {[%emt 0:00:10]} Nf4 {[%emt 0:00:43]} 16. Be3 {[%emt 0:00:34]} Qg5 {[%emt 0:01:36]} 17. Bxc5 {[%emt 0:01:15] White is clearly winning.} dxc5 {[%emt 0:00:01]} 18. Rfe1 {[%emt 0:00:32]} h5 {[%emt 0:00:07]} 19. Bf3 {[%emt 0:00:25]} Qh4 {[%emt 0:00:35]} 20. Ne2 {[%emt 0:00:43]} g5 {[%emt 0:00:16]} (20... Nxe2+ $142 21. Qxe2 g6) 21. Nxf4 {[%emt 0:00:17]} gxf4 {[%emt 0:00:03]} 22. Red1 {[%emt 0:00:40]} Rad8 {[%emt 0:00:09]} 23. Qc3 {[%emt 0:00:05]} Qg5 {[%emt 0:00:05]} 24. Qa5 {[%emt 0:00:09]} Rd6 {[%emt 0:00:17]} 25. Qxc5 {[%emt 0:00:31]} Rc8 {[%emt 0:00:25]} 26. Qxa7 {[%emt 0:00:59]} b6 {[%emt 0:00:00]} 27. Qa3 {[%emt 0:00:03]} h4 {[%emt 0:00:11]} 28. h3 {[%emt 0:00:01]} f5 {[%emt 0:00:03]} 29. exf5 {[%emt 0:00:04] Black did not feel at home in the position after the opening.  Weighted Error Value: White=0.16 (very precise) /Black=0.84} 1-0

[Event "European Corporate Championship 2022"]
[Site "Rotterdam"]
[Date "2022.06.18"]
[Round "4.9"]
[White "Van Wely, Loek"]
[Black "Afek, Yochanan"]
[Result "1-0"]
[ECO "D20"]
[WhiteElo "2618"]
[BlackElo "2210"]
[Annotator "TA"]
[PlyCount "75"]
[EventDate "2022.06.18"]
[EventType "team-tourn"]
[EventCountry "NED"]
[SourceTitle "playchess.com"]
[Source "ChessBase"]
[SourceQuality "1"]
[TimeControl "900+5"]

{[%evp 18,75,34,26,25,23,47,51,58,65,47,52,60,44,40,32,74,85,84,86,131,118,159,163,143,113,165,115,118,115,118,114,117,120,133,121,164,163,193,177,892,670,662,652,862,862,862,862,1245,1222,1477,1345,1349,461,445,463,455,432,5485,2289]} 1. d4 {[%emt 0:00:02]} d5 {[%emt 0:00:24][%cal Bd7d5,Bd5c4][%mdl 32]} 2. c4 {[%emt 0:00:03]} dxc4 {[%emt 0:00:01]} 3. e4 {[%emt 0:00:03]} c5 {[%emt 0:00:03]} 4. d5 {[%emt 0:00:04]} e6 {[%emt 0:00:13]} 5. Nc3 {[%emt 0:00:14]} exd5 {[%emt 0:00:23]} 6. Nxd5 {[%emt 0:00:03]} Ne7 {[%emt 0:00:27]} 7. Bxc4 {[%emt 0:00:05]} Nxd5 {[%emt 0:00:10]} 8. Bxd5 {[%emt 0:00:02]} Be7 {[%emt 0:00:09]} 9. Ne2 {[%emt 0:00:12][%cal Bg1e2,Be2c3,Bc3d5][%mdl 32]} O-O {[%emt 0:00:14]} 10. O-O {[%emt 0:00:02]} Nd7 {[%emt 0:00:25] D20: Queen's Gambit Accepted: 3 e3 and 3 e4.} 11. Nc3 {[%emt 0:00:33]} Nf6 {[%emt 0:00:38]} 12. Bf4 {[%emt 0:00:43]} Nxd5 {[%emt 0:01:01] White is slightly better.} 13. Nxd5 {[%emt 0:00:13]} Bd6 {[%emt 0:01:49] Against Bc7} 14. e5 {[%emt 0:00:02]} Bb8 {[%emt 0:00:33]} 15. Qb3 {[%emt 0:02:56]} Be6 {[%emt 0:02:39] [#]} 16. Rfd1 $146 {[%emt 0:00:13]} ({Predecessor:} 16. Rad1 b6 17. Bg3 Bc7 18. f4 Bxd5 19. Rxd5 Qe7 20. f5 Rad8 21. Rfd1 Rxd5 22. Rxd5 {1-0 (40) Greenfeld,A (2570)-Gyimesi,Z (2571) Tel Aviv 2001}) 16... Bxd5 {[%emt 0:00:11]} 17. Rxd5 {[%emt 0:00:03]} Qb6 {[%emt 0:01:39]} 18. Qc2 {[%emt 0:00:59]} Qb4 {[%emt 0:01:16]} 19. Bd2 {[%emt 0:00:05]} Qh4 {[%emt 0:00:40]} 20. Qxc5 {[%emt 0:00:36]} a6 {[%emt 0:00:10]} 21. g3 {[%emt 0:00:22]} Qh3 {[%emt 0:00:15]} (21... Qg4 $16 {was called for.}) 22. Be3 {[%emt 0:01:36]} ({Much less strong is} 22. Bb4 Ba7 23. Qc2 Rad8 $16) (22. Bc3 $18) 22... Ba7 {[%emt 0:00:12]} 23. Qa3 {[%emt 0:00:02]} Bxe3 {[%emt 0:00:16]} 24. Qxe3 {[%emt 0:00:02]} Rac8 {[%emt 0:00:04]} 25. Qe4 {[%emt 0:00:17]} Rc6 {[%emt 0:00:09]} 26. Rd6 {[%emt 0:00:28]} Rfc8 {[%emt 0:00:27]} 27. Rad1 {[%emt 0:00:13] [#] Intending Rd8+ and mate.} g6 {[%emt 0:00:43]} 28. Qf4 $40 {[%emt 0:01:24][%cal Oe5e6][%mdl 128] e6! is the strong threat. White goes for the king.} ({Avoid the trap} 28. e6 $2 Rxd6 29. exf7+ Kxf7 30. Qxb7+ Kg8 31. Qb3+ Re6 $19) 28... h6 $2 {[%emt 0:00:37]} (28... Qf5 29. Qxf5 gxf5) 29. Qf6 {[%emt 0:00:25] White threatens Rd8+ and mate. White is clearly winning.} Rxd6 {[%emt 0:00:32]} 30. exd6 $18 {[%emt 0:00:03][%cal Be5d6,Bd6d7][%mdl 4128] Endgame And now d7 would win. KQR-KQR} ({Not} 30. Qxd6 Qf5 $16) 30... Qd7 {[%emt 0:00:17]} 31. Re1 {[%emt 0:00:38] [#] Threatens to win with Re7.} Rf8 {[%emt 0:00:37]} 32. Re7 {[%emt 0:00:40]} Qc6 {[%emt 0:00:08]} 33. Rc7 {[%emt 0:00:17]} Qe4 {[%emt 0:00:09]} 34. d7 {[%emt 0:00:15] Active counter play!} Qd3 {[%emt 0:00:10]} 35. Rxb7 {[%emt 0:00:48]} (35. Kg2 $142 Kh7 36. Rc8 Qd5+ 37. Qf3 Qxd7 38. Rxf8) 35... Qd1+ {[%emt 0:00:04]} 36. Kg2 {[%emt 0:00:02] Black must now prevent Rc7.} Qd5+ {[%emt 0:00:02]} 37. Qf3 {[%emt 0:00:02]} Qxa2 {[%emt 0:00:12]} (37... Qc4 $142 38. Ra7 Qd4) 38. Qc6 {[%emt 0:00:24] Weighted Error Value: White=0.34/Black=0.19 (very precise)} 1-0

[Event "European Corporate Championship 2022"]
[Site "Rotterdam"]
[Date "2022.06.18"]
[Round "4.10"]
[White "Theulings, Paul-Peter"]
[Black "Lambrechts, Koen"]
[Result "0-1"]
[ECO "D79"]
[WhiteElo "2063"]
[BlackElo "2349"]
[Annotator "TA"]
[PlyCount "112"]
[EventDate "2022.06.18"]
[EventType "team-tourn"]
[EventCountry "NED"]
[SourceTitle "playchess.com"]
[Source "ChessBase"]
[SourceQuality "1"]
[TimeControl "900+5"]

{[%evp 18,112,5,16,23,18,28,31,22,13,19,22,28,0,0,0,0,-8,-4,-125,-22,-26,-26,-27,-19,-91,-103,-158,-147,-231,-194,-222,-142,-143,-141,-149,-135,-207,-63,-46,-53,-61,-58,-58,-43,-58,-50,-46,-23,-48,-43,-101,-101,-104,-43,-50,-45,-51,-48,-52,-30,-30,-30,-48,-41,-124,-79,-124,-124,-399,-370,-358,-330,-6362,-518,-6558,-6644,-6267,-6438,-5726,-5841,-3980,-4327,-4089,-3722,-2433,-1679,-29974,-29975,-29977,-29979,-29978,-29979,-29984,-29983,-29989,-29990]} 1. Nf3 {[%emt 0:00:02]} Nf6 {[%emt 0:00:06]} 2. c4 {[%emt 0:00:03]} g6 {[%emt 0:00:01]} 3. g3 {[%emt 0:00:01]} Bg7 {[%emt 0:00:02]} 4. Bg2 {[%emt 0:00:02]} O-O {[%emt 0:00:03]} 5. O-O {[%emt 0:00:03]} c6 {[%emt 0:00:01]} 6. d4 {[%emt 0:00:02]} d5 {[%emt 0:00:04]} 7. cxd5 {[%emt 0:00:03]} cxd5 {[%emt 0:00:22]} 8. Ne5 {[%emt 0:00:03]} Nfd7 {[%emt 0:01:10]} 9. f4 {[%emt 0:00:18]} Nxe5 {[%emt 0:00:14]} 10. dxe5 {[%emt 0:00:10] [#] was the old line (10.fxe5).} d4 $146 {[%emt 0:01:01] Prevents Be3. D79: Fianchetto Grünfeld: Symmetrical Variation (6 0-0 c6 7 cxd5 cxd5).} ({Predecessor:} 10... Qb6+ 11. Rf2 d4 12. Nd2 Be6 13. b3 Nc6 14. Nc4 Qa6 15. Qd3 Rfd8 16. Bd2 Rac8 17. Nb2 Qa3 18. Nc4 {½-½ (101) Keymer,V (2591)-Ghasi,A (2485) Chess.com INT 2021}) 11. e3 {[%emt 0:01:12]} Nc6 {[%emt 0:00:22]} 12. Bxc6 {[%emt 0:01:13]} bxc6 {[%emt 0:00:02] White is slightly better.} 13. exd4 {[%emt 0:00:07]} Qb6 {[%emt 0:00:11]} 14. Nc3 {[%emt 0:03:13]} Rd8 {[%emt 0:02:01]} 15. Be3 {[%emt 0:00:18]} Qxb2 {[%emt 0:02:19]} 16. Na4 {[%emt 0:00:25]} Qb5 {[%emt 0:00:43]} 17. Rb1 {[%emt 0:01:05]} Qa5 {[%emt 0:00:37]} 18. Qb3 {[%emt 0:02:21] [#]} (18. Rf2 $11) 18... Be6 {[%emt 0:00:48]} ({Better is} 18... Bh3 $1 $17 {Strongly threatening ...Rab8.} 19. Rfc1 Be6) 19. Qb4 $11 {[%emt 0:00:06] Against Rab8} Qd5 {[%emt 0:01:02]} 20. Nc3 {[%emt 0:01:01]} Qd7 {[%emt 0:00:10]} 21. Ne4 {[%emt 0:00:21]} (21. Rfc1 $11 {remains equal.}) 21... Bxa2 $17 {[%emt 0:00:31]} 22. Nc5 {[%emt 0:00:35]} ({White should try} 22. Ra1 Rdb8 23. Qc5) 22... Qf5 {[%emt 0:00:33] Threatens to win with ...a5.} 23. Rb2 {[%emt 0:00:14]} (23. Ra1 $17 {keeps fighting.} Rdb8 24. Qc3) 23... Bd5 {[%emt 0:00:03]} 24. Ra1 {[%emt 0:01:21]} Qh5 {[%emt 0:01:42]} 25. Rf2 {[%emt 0:00:17] Inhibits Qf3.} a5 {[%emt 0:00:08]} 26. Qd2 {[%emt 0:00:34]} a4 {[%emt 0:00:34] White must now prevent ...Rdb8.} 27. Rxa4 {[%emt 0:00:33] [#]} (27. Qd3 $17) 27... Rxa4 {[%emt 0:00:06]} (27... Qf5 $1 $19 {And now ...Rxa4 would win.} 28. Rxa8 Rxa8) 28. Nxa4 $15 {[%emt 0:00:01]} Ra8 {[%emt 0:00:23]} 29. Nc3 {[%emt 0:00:19]} Ra1+ {[%emt 0:00:07]} 30. Rf1 {[%emt 0:00:12]} Rxf1+ {[%emt 0:00:32]} 31. Kxf1 {[%emt 0:00:02]} Bf3 {[%emt 0:00:19]} 32. Qf2 {[%emt 0:00:15]} h6 {[%emt 0:00:08]} 33. Na4 {[%emt 0:00:20]} Bf8 {[%emt 0:00:10]} 34. Nc5 {[%emt 0:00:04]} (34. Kg1 $15) 34... Bd5 $17 {[%emt 0:00:06] ...Qd1+ is the strong threat.} 35. Qe2 {[%emt 0:00:15] Against Qd1+} Qf5 {[%emt 0:00:14]} (35... Qh3+ $17 36. Kg1 h5) 36. g4 $15 {[%emt 0:00:27]} Qb1+ {[%emt 0:00:02]} 37. Kf2 {[%emt 0:00:06]} e6 {[%emt 0:00:14]} 38. Nd7 {[%emt 0:00:08]} Be7 {[%emt 0:00:40][%cal Re7h4] A strong pair of Bishops.} 39. Nf6+ $1 {[%emt 0:00:06]} Kg7 {[%emt 0:00:13]} 40. Nxd5 {[%emt 0:00:03]} cxd5 $11 {[%emt 0:00:05][%mdl 4096] Endgame KQB-KQB} 41. g5 {[%emt 0:00:07]} (41. Kg2 $15) 41... Qf5 {[%emt 0:00:09][%cal Rh6g5] Black is more active.} 42. Qf3 {[%emt 0:00:06]} hxg5 {[%emt 0:00:03]} 43. fxg5 {[%emt 0:00:02][%mdl 8192] This move loses the game for White.} (43. Kg3 $17) 43... Bxg5 $19 {[%emt 0:00:03]} 44. Bxg5 {[%emt 0:00:08]} Qxg5 $17 {[%emt 0:00:01] KQ-KQ} 45. Ke1 {[%emt 0:00:09] Prevents Qd2+.} (45. Qc3) 45... Qh4+ {[%emt 0:00:05]} (45... Qg1+ $142 46. Ke2 Qxd4 47. Qf6+ Kg8) 46. Ke2 {[%emt 0:00:12]} (46. Qg3 $142 Qe4+ 47. Kf1) 46... Qxh2+ $19 {[%emt 0:00:03]} 47. Kd3 {[%emt 0:00:03]} Qh4 {[%emt 0:00:02][%cal Oh4e4]} 48. Kc3 {[%emt 0:00:05]} Qg5 {[%emt 0:00:03]} 49. Kb4 {[%emt 0:00:04]} Qf5 {[%emt 0:00:01]} 50. Qe3 {[%emt 0:00:03]} g5 {[%emt 0:00:02][%cal Bg6g5,Bg5g4,Bg4g3,Bg3g2][%mdl 32]} 51. Kc5 {[%emt 0:00:02]} Qf4 {[%emt 0:00:06]} 52. Qd3 {[%emt 0:00:02]} g4 {[%emt 0:00:01] Black mates.} 53. Kd6 {[%emt 0:00:05]} g3 {[%emt 0:00:06]} 54. Qe2 {[%emt 0:00:05]} Qxd4 {[%emt 0:00:21]} 55. Qh5 {[%emt 0:00:04]} Qf4 {[%emt 0:00:01]} 56. Ke7 {[%emt 0:00:07]} g2 {[%emt 0:00:08] Weighted Error Value: White=0.83/Black=0.40} 0-1